fUST/lending_fUST_20250306
["ID","MTS","AMOUNT","RATE_DAILY","PERIOD"]
[355477403,1741198245228,-758.44,0.00038356,9]
[355477405,1741198245238,-500.0,0.00038356,9]
[355477407,1741198245247,-1163.07,0.00038356,9]
[355477409,1741198245257,-500.0,0.00038356,9]
[355477411,1741198245266,-504.97765047,0.00038356,9]
[355477413,1741198245275,-500.0,0.00038356,9]
[355477415,1741198245285,-1213.85,0.00038356,9]
[355477417,1741198245294,-500.0,0.00038356,9]
[355477419,1741198245304,-151.0,0.00038356,14]
[355477421,1741198245313,-500.0,0.00038356,9]
[355477423,1741198245322,-151.0,0.00038356,14]
[355477425,1741198245332,-151.0,0.00038356,14]
[355477427,1741198245341,-975.73,0.00038356,9]
[355477429,1741198245351,-197.116757,0.00038356,14]
[355477431,1741198245363,-500.0,0.00038356,9]
[355477433,1741198245372,-500.0,0.00038356,9]
[355477435,1741198245382,-505.7966801,0.00038356,9]
[355477437,1741198245391,-1668.8,0.00038356,9]
[355477439,1741198245402,-500.0,0.00038356,9]
[355477441,1741198245411,-500.0,0.00038356,9]
[355477443,1741198245420,-506.99634675,0.00038356,9]
[355477445,1741198245429,-500.0,0.00038356,9]
[355477447,1741198245438,-750.41,0.00038356,9]
[355477449,1741198245448,-716.34,0.00038356,9]
[355477451,1741198245457,-500.0,0.00038356,9]
[355477453,1741198245466,-500.0,0.00038356,9]
[355477455,1741198245475,-507.77034355,0.00038356,9]
[355477457,1741198245484,-500.0,0.00038356,9]
[355477459,1741198245493,-500.0,0.00038356,9]
[355477461,1741198245502,-500.0,0.00038356,9]
[355477463,1741198245511,-12795.82,0.00038356,9]
[355477465,1741198245520,-500.0,0.00038356,9]
[355477467,1741198245529,-500.0,0.00038356,9]
[355477469,1741198245539,-500.0,0.00038356,9]
[355477471,1741198245548,-500.0,0.00038356,9]
[355477473,1741198245557,-500.0,0.00038356,9]
[355477475,1741198245566,-500.0,0.00038356,9]
[355477477,1741198245576,-500.0,0.00038356,9]
[355477479,1741198245586,-500.0,0.00038356,9]
[355477481,1741198245600,-472.63420088,0.00038356,9]
[355477483,1741198245611,-500.0,0.00038356,9]
[355477485,1741198245620,-500.0,0.00038356,9]
[355477487,1741198245631,-500.0,0.00038356,9]
[355477489,1741198245640,-10119.18,0.00038356,9]
[355477491,1741198245649,-2441.88,0.00038356,9]
[355477493,1741198245658,-524.27,0.00038356,9]
[355477495,1741198245668,-228.41910971,0.00038356,9]
[355477497,1741198245678,-510.29270413,0.00038356,9]
[355477499,1741198245688,-500.0,0.00038356,9]
[355477501,1741198245697,-500.0,0.00038356,9]
[355477503,1741198245706,-502.12871722,0.00038356,9]
[355477505,1741198245716,-500.0,0.00038356,9]
[355477507,1741198245725,-1356.54,0.00038356,9]
[355477509,1741198245735,-500.0,0.00038356,9]
[355477511,1741198245744,-500.0,0.00038356,9]
[355477513,1741198245754,-500.0,0.00038356,9]
[355477515,1741198245763,-500.0,0.00038356,9]
[355477517,1741198245773,-504.83662954,0.00038356,9]
[355477519,1741198245782,-500.0,0.00038356,9]
[355477521,1741198245792,-500.0,0.00038356,9]
[355477524,1741198245802,-5315.05,0.00038356,9]
[355477525,1741198245811,-506.96758714,0.00038356,9]
[355477527,1741198245820,-500.0,0.00038356,9]
[355477529,1741198245830,-500.0,0.00038356,9]
[355477531,1741198245839,-500.0,0.00038356,9]
[355477533,1741198245848,-500.0,0.00038356,9]
[355477536,1741198245860,-766.92,0.00038356,9]
[355477538,1741198245869,-500.0,0.00038356,9]
[355477540,1741198245879,-500.0,0.00038356,9]
[355477542,1741198245888,-1383.63,0.00038356,9]
[355477544,1741198245898,-500.0,0.00038356,9]
[355477546,1741198245908,-495.54,0.00038356,9]
[355477548,1741198245917,-500.0,0.00038356,9]
[355477550,1741198245927,-500.0,0.00038356,9]
[355477552,1741198245938,-500.0,0.00038356,9]
[355477554,1741198245947,-500.0,0.00038356,9]
[355477556,1741198245956,-284.25,0.00038356,14]
[355477558,1741198245965,-284.25,0.00038356,14]
[355477561,1741198245975,-284.25,0.00038356,14]
[355477564,1741198245984,-284.25,0.00038356,14]
[355477567,1741198245994,-500.0,0.00038356,9]
[355477569,1741198246003,-284.25,0.00038356,14]
[355477571,1741198246012,-284.25,0.00038356,14]
[355477573,1741198246021,-502.2790626,0.00038356,9]
[355477575,1741198246031,-284.25,0.00038356,14]
[355477577,1741198246040,-284.25,0.00038356,14]
[355477579,1741198246049,-284.25,0.00038356,14]
[355477581,1741198246058,-284.25,0.00038356,14]
[355477583,1741198246067,-284.25,0.00038356,14]
[355477585,1741198246076,-284.25,0.00038356,14]
[355477587,1741198246086,-284.25,0.00038356,14]
[355477589,1741198246095,-1023.28,0.00038356,9]
[355477591,1741198246104,-284.25,0.00038356,14]
[355477593,1741198246116,-501.45497165,0.00038356,9]
[355477595,1741198246126,-500.0,0.00038356,9]
[355477597,1741198246135,-1395.66,0.00038356,9]
[355477599,1741198246145,-1583.94,0.00038356,9]
[355477601,1741198246154,-500.0,0.00038356,9]
[355477603,1741198246163,-500.0,0.00038356,9]
[355477604,1741198246172,-500.0,0.00038356,9]
[355477605,1741198246182,-500.0,0.00038356,9]
[355477606,1741198246192,-500.0,0.00038356,9]
[355477607,1741198246202,-507.4264689,0.00038356,9]
[355477608,1741198246211,-500.0,0.00038356,9]
[355477609,1741198246221,-500.0,0.00038356,9]
[355477610,1741198246230,-1194.72,0.00038356,9]
[355477611,1741198246240,-500.0,0.00038356,9]
[355477612,1741198246249,-500.0,0.00038356,9]
[355477613,1741198246258,-500.0,0.00038356,9]
[355477614,1741198246267,-591.07,0.00038356,9]
[355477615,1741198246277,-842.41,0.00038356,9]
[355477616,1741198246286,-506.92281123,0.00038356,9]
[355477617,1741198246296,-500.0,0.00038356,9]
[355477618,1741198246305,-500.0,0.00038356,9]
[355477619,1741198246315,-698.6,0.00038356,9]
[355477620,1741198246325,-500.0,0.00038356,9]
[355477621,1741198246335,-501.11793806,0.00038356,9]
[355477622,1741198246344,-502.04827598,0.00038356,9]
[355477623,1741198246353,-500.0,0.00038356,9]
[355477624,1741198246364,-500.0,0.00038356,9]
[355477625,1741198246375,-500.0,0.00038356,9]
[355477627,1741198246384,-500.0,0.00038356,9]
[355477629,1741198246394,-1149.74,0.00038356,9]
[355477631,1741198246404,-500.0,0.00038356,9]
[355477633,1741198246414,-500.0,0.00038356,9]
[355477635,1741198246423,-500.0,0.00038356,9]
[355477637,1741198246432,-500.0,0.00038356,9]
[355477639,1741198246441,-500.0,0.00038356,9]
[355477641,1741198246451,-500.0,0.00038356,9]
[355477643,1741198246460,-500.0,0.00038356,9]
[355477645,1741198246469,-505.37748289,0.00038356,9]
[355477647,1741198246478,-500.0,0.00038356,9]
[355477649,1741198246488,-1637.36,0.00038356,9]
[355477651,1741198246497,-500.0,0.00038356,9]
[355477653,1741198246506,-500.0,0.00038356,9]
[355477656,1741198246515,-514.24604591,0.00038356,9]
[355477658,1741198246525,-597.92,0.00038356,9]
[355477660,1741198246535,-626.52,0.00038356,9]
[355477662,1741198246546,-197.3886433,0.00038356,9]
[355477664,1741198246555,-500.0,0.00038356,9]
[355477666,1741198246564,-4657.77,0.00038356,9]
[355477668,1741198246573,-500.0,0.00038356,9]
[355477670,1741198246582,-500.0,0.00038356,9]
[355477671,1741198246591,-1177.29,0.00038356,9]
[355477673,1741198246603,-500.0,0.00038356,9]
[355477675,1741198246615,-500.0,0.00038356,9]
[355477677,1741198246624,-503.01561642,0.00038356,9]
[355477679,1741198246633,-500.0,0.00038356,9]
[355477681,1741198246644,-500.0,0.00038356,9]
[355477683,1741198246653,-514.66769353,0.00038356,9]
[355477685,1741198246662,-500.0,0.00038356,9]
[355477687,1741198246673,-5173.81,0.00038356,9]
[355477689,1741198246682,-4975.94,0.00038356,9]
[355477691,1741198246691,-500.0,0.00038356,9]
[355477693,1741198246701,-500.0,0.00038356,9]
[355477695,1741198246710,-500.0,0.00038356,9]
[355477697,1741198246720,-528.62197171,0.00038356,9]
[355477699,1741198246729,-500.0,0.00038356,9]
[355477701,1741198246738,-511.88769883,0.00038356,9]
[355477703,1741198246747,-500.0,0.00038356,9]
[355477705,1741198246757,-510.87504523,0.00038356,9]
[355477707,1741198246766,-500.0,0.00038356,9]
[355477709,1741198246776,-151.0,0.00038356,14]
[355477711,1741198246786,-500.0,0.00038356,9]
[355477713,1741198246795,-151.0,0.00038356,14]
[355477715,1741198246804,-500.0,0.00038356,9]
[355477717,1741198246813,-151.0,0.00038356,14]
[355477719,1741198246822,-151.0,0.00038356,14]
[355477721,1741198246831,-169.446356,0.00038356,14]
[355477723,1741198246840,-3080.81,0.00038356,9]
[355477725,1741198246850,-500.0,0.00038356,9]
[355477727,1741198246862,-500.0,0.00038356,9]
[355477729,1741198246871,-500.0,0.00038356,9]
[355477731,1741198246880,-510.32818656,0.00038356,9]
[355477733,1741198246889,-500.0,0.00038356,9]
[355477735,1741198246899,-505.8536395,0.00038356,9]
[355477737,1741198246907,-500.0,0.00038356,9]
[355477739,1741198246916,-500.0,0.00038356,9]
[355477741,1741198246926,-500.0,0.00038356,9]
[355477743,1741198246935,-500.0,0.00038356,9]
[355477745,1741198246945,-500.0,0.00038356,9]
[355477746,1741198246954,-500.0,0.00038356,9]
[355477749,1741198246963,-500.0,0.00038356,9]
[355477750,1741198246973,-507.11142605,0.00038356,9]
[355477752,1741198246982,-500.0,0.00038356,9]
[355477754,1741198246991,-500.0,0.00038356,9]
[355477756,1741198247000,-500.0,0.00038356,9]
[355477758,1741198247009,-500.0,0.00038356,9]
[355477760,1741198247019,-1800.95,0.00038356,9]
[355477762,1741198247028,-500.0,0.00038356,9]
[355477764,1741198247037,-337.70350975,0.00038356,9]
[355477766,1741198247046,-500.0,0.00038356,9]
[355477768,1741198247055,-1451.32570153,0.00038363,3]
[355477770,1741198247065,-500.0,0.00038373,5]
[355477772,1741198247074,-386.75229727,0.00038373,5]
[355477774,1741198247083,-276.90892705,0.00038373,5]
[355477776,1741198247093,-500.0,0.00038373,5]
[355477778,1741198247102,-500.0,0.00038373,5]
[355477780,1741198247113,-500.0,0.00038373,5]
[355477782,1741198247122,-511.55103978,0.00038373,5]
[355477784,1741198247131,-500.0,0.00038373,5]
[355477786,1741198247141,-500.0,0.00038373,5]
[355477788,1741198247150,-500.0,0.00038373,5]
[355477790,1741198247159,-500.0,0.00038373,5]
[355477792,1741198247168,-504.03364983,0.00038373,5]
[355477794,1741198247177,-500.0,0.00038373,5]
[355477796,1741198247187,-500.0,0.00038373,5]
[355477798,1741198247196,-502.84961383,0.00038373,5]
[355477800,1741198247206,-500.0,0.00038373,5]
[355477802,1741198247215,-500.0,0.00038373,5]
[355477804,1741198247224,-621.92935537,0.00038373,5]
[355477806,1741198247233,-500.0,0.00038373,5]
[355477808,1741198247242,-523.55849418,0.00038373,5]
[355477824,1741198247377,-500.0,0.00038373,5]
[355477827,1741198247403,-500.0,0.00038373,5]
[355477829,1741198247413,-500.0,0.00038373,5]
[355477831,1741198247423,-500.0,0.00038373,5]
[355477833,1741198247432,-500.0,0.00038373,5]
[355477835,1741198247442,-159.58273539,0.00038373,2]
[355477837,1741198247451,-500.0,0.00038373,5]
[355477839,1741198247461,-500.0,0.00038373,5]
[355477841,1741198247471,-502.05127232,0.00038429,7]
[355477843,1741198247482,-5805.30280612,0.0003862,3]
[355477845,1741198247492,-160.0,0.00038629,30]
[355477847,1741198247503,-185.26023685,0.0003863,9]
[355477849,1741198247514,-500.0,0.0003863,9]
[355477851,1741198247524,-377.70622823,0.0003863,9]
[355477853,1741198247534,-500.0,0.0003863,9]
[355477855,1741198247543,-500.0,0.0003863,9]
[355477856,1741198247554,-500.0,0.0003863,9]
[355477859,1741198247565,-500.0,0.0003863,9]
[355477860,1741198247575,-500.0,0.0003863,9]
[355477862,1741198247585,-500.0,0.0003863,9]
[355477865,1741198247596,-500.0,0.0003863,9]
[355477866,1741198247609,-500.0,0.0003863,9]
[355477868,1741198247624,-500.0,0.0003863,9]
[355477870,1741198247634,-500.0,0.0003863,9]
[355477872,1741198247645,-500.0,0.0003863,9]
[355477874,1741198247656,-500.0,0.0003863,9]
[355477876,1741198247666,-500.0,0.0003863,9]
[355477878,1741198247676,-500.0,0.0003863,9]
[355477880,1741198247686,-500.0,0.0003863,9]
[355477882,1741198247696,-500.0,0.0003863,9]
[355477884,1741198247706,-512.15694133,0.0003863,9]
[355477886,1741198247716,-500.0,0.0003863,9]
[355477888,1741198247725,-500.0,0.0003863,9]
[355477890,1741198247735,-500.0,0.0003863,9]
[355477892,1741198247745,-573.4185782,0.0003863,9]
[355477894,1741198247755,-506.87767484,0.0003863,9]
[355477896,1741198247765,-500.0,0.0003863,9]
[355477898,1741198247775,-503.64426351,0.0003863,9]
[355477900,1741198247785,-500.0,0.0003863,9]
[355477902,1741198247796,-579.05767375,0.0003863,9]
[355477904,1741198247806,-500.0,0.0003863,9]
[355477906,1741198247816,-500.0,0.0003863,9]
[355477908,1741198247826,-938.23,0.0003863,9]
[355477910,1741198247836,-575.0655614,0.0003863,9]
[355477912,1741198247846,-500.0,0.0003863,9]
[355477914,1741198247855,-500.0,0.0003863,9]
[355477916,1741198247870,-500.0,0.0003863,9]
[355477918,1741198247880,-763.18,0.0003863,9]
[355477920,1741198247890,-280.50251963,0.0003863,9]
[355477922,1741198247899,-507.96898743,0.0003863,9]
[355477924,1741198247910,-500.0,0.0003863,9]
[355477926,1741198247919,-500.0,0.0003863,9]
[355477928,1741198247929,-500.0,0.0003863,9]
[355477930,1741198247939,-508.52594576,0.0003863,9]
[355477932,1741198247949,-513.1944816,0.0003863,9]
[355477934,1741198247958,-500.0,0.0003863,9]
[355477936,1741198247968,-510.25,0.0003863,9]
[355477938,1741198247977,-500.0,0.0003863,9]
[355477940,1741198247987,-261.27830482,0.0003863,9]
[355477942,1741198247997,-500.0,0.0003863,9]
[355477944,1741198248006,-500.0,0.0003863,9]
[355477946,1741198248016,-500.0,0.0003863,9]
[355477948,1741198248025,-175.25474088,0.0003863,9]
[355477950,1741198248035,-500.0,0.0003863,9]
[355477952,1741198248044,-500.0,0.0003863,9]
[355477954,1741198248056,-447.40666548,0.0003863,9]
[355477956,1741198248066,-500.0,0.0003863,9]
[355477958,1741198248076,-503.32198273,0.0003863,9]
[355477959,1741198248086,-534.8,0.0003863,9]
[355477960,1741198248097,-500.0,0.0003863,9]
[355477961,1741198248106,-500.0,0.0003863,9]
[355477962,1741198248121,-500.0,0.0003863,9]
[355477963,1741198248131,-500.0,0.0003863,9]
[355477964,1741198248142,-500.0,0.0003863,9]
[355477965,1741198248153,-500.0,0.0003863,9]
[355477966,1741198248163,-500.0,0.0003863,9]
[355477967,1741198248174,-500.0,0.0003863,9]
[355477968,1741198248185,-500.0,0.0003863,9]
[355477969,1741198248195,-680.8,0.0003863,9]
[355477970,1741198248205,-441.79478034,0.0003863,9]
[355477971,1741198248214,-599.83,0.0003863,9]
[355477972,1741198248224,-500.0,0.0003863,9]
[355477973,1741198248234,-500.0,0.0003863,9]
[355477974,1741198248243,-500.0,0.0003863,9]
[355477975,1741198248253,-500.0,0.0003863,9]
[355477976,1741198248263,-514.5,0.0003863,9]
[355477977,1741198248273,-500.0,0.0003863,9]
[355477978,1741198248283,-500.0,0.0003863,9]
[355477979,1741198248293,-500.0,0.0003863,9]
[355477980,1741198248303,-502.01420015,0.0003863,9]
[355477981,1741198248313,-500.0,0.0003863,9]
[355477982,1741198248322,-500.0,0.0003863,9]
[355477983,1741198248332,-500.0,0.0003863,9]
[355477984,1741198248343,-500.0,0.0003863,9]
[355477985,1741198248353,-500.0,0.0003863,9]
[355477986,1741198248366,-500.0,0.0003863,9]
[355477987,1741198248376,-500.0,0.0003863,9]
[355477988,1741198248386,-500.0,0.0003863,9]
[355477989,1741198248397,-500.0,0.0003863,9]
[355477990,1741198248407,-500.0,0.0003863,9]
[355477991,1741198248418,-500.0,0.0003863,9]
[355477992,1741198248429,-500.0,0.0003863,9]
[355477993,1741198248439,-887.0,0.0003863,9]
[355477994,1741198248449,-500.0,0.0003863,9]
[355477995,1741198248459,-500.0,0.0003863,9]
[355477996,1741198248470,-500.0,0.0003863,9]
[355477997,1741198248480,-500.0,0.0003863,9]
[355477998,1741198248491,-178.61843389,0.0003863,9]
[355477999,1741198248500,-500.0,0.0003863,9]
[355478000,1741198248510,-500.0,0.0003863,9]
[355478001,1741198248520,-500.0,0.0003863,9]
[355478002,1741198248530,-500.0,0.0003863,9]
[355478003,1741198248539,-500.0,0.0003863,9]
[355478004,1741198248549,-517.31446003,0.0003863,9]
[355478005,1741198248559,-500.0,0.0003863,9]
[355478006,1741198248568,-500.0,0.0003863,9]
[355478007,1741198248577,-500.0,0.0003863,9]
[355478008,1741198248587,-632.68,0.0003863,9]
[355478009,1741198248600,-500.0,0.0003863,9]
[355478010,1741198248609,-500.0,0.0003863,9]
[355478011,1741198248622,-500.0,0.0003863,9]
[355478012,1741198248631,-500.0,0.0003863,9]
[355478013,1741198248642,-500.0,0.0003863,9]
[355478014,1741198248652,-507.71896597,0.0003863,9]
[355478015,1741198248662,-502.79801055,0.0003863,9]
[355478016,1741198248672,-500.0,0.0003863,9]
[355478017,1741198248683,-500.0,0.0003863,9]
[355478018,1741198248694,-500.0,0.0003863,9]
[355478019,1741198248704,-500.0,0.0003863,9]
[355478020,1741198248714,-500.0,0.0003863,9]
[355478021,1741198248724,-500.0,0.0003863,9]
[355478022,1741198248735,-500.0,0.0003863,9]
[355478023,1741198248745,-500.0,0.0003863,9]
[355478024,1741198248755,-500.0,0.0003863,9]
[355478025,1741198248764,-500.0,0.0003863,9]
[355478026,1741198248774,-500.0,0.0003863,9]
[355478027,1741198248784,-500.0,0.0003863,9]
[355478028,1741198248797,-500.0,0.0003863,9]
[355478029,1741198248807,-200.0,0.0003863,7]
[355478030,1741198248816,-500.0,0.0003863,9]
[355478031,1741198248826,-500.0,0.0003863,9]
[355478032,1741198248836,-500.0,0.0003863,9]
[355478033,1741198248845,-500.0,0.0003863,9]
[355478034,1741198248855,-500.0,0.0003863,9]
[355478035,1741198248867,-725.22,0.0003863,9]
[355478036,1741198248877,-709.27,0.0003863,9]
[355478037,1741198248887,-500.0,0.0003863,9]
[355478038,1741198248897,-500.0,0.0003863,9]
[355478039,1741198248907,-500.0,0.0003863,9]
[355478040,1741198248917,-249.09574717,0.0003863,9]
[355478041,1741198248927,-500.0,0.0003863,9]
[355478042,1741198248946,-500.0,0.0003863,9]
[355478043,1741198248956,-500.0,0.0003863,9]
[355478044,1741198248966,-500.0,0.0003863,9]
[355478045,1741198248975,-500.0,0.0003863,9]
[355478046,1741198248985,-500.0,0.0003863,9]
[355478047,1741198248994,-500.0,0.0003863,9]
[355478048,1741198249004,-500.0,0.0003863,9]
[355478049,1741198249013,-196.66373468,0.0003863,9]
[355478050,1741198249023,-508.0540307,0.0003863,9]
[355478051,1741198249033,-634.78,0.0003863,9]
[355478052,1741198249042,-500.0,0.0003863,9]
[355478053,1741198249051,-500.0,0.0003863,9]
[355478054,1741198249061,-500.0,0.0003863,9]
[355478055,1741198249070,-500.0,0.0003863,9]
[355478056,1741198249080,-500.0,0.0003863,9]
[355478057,1741198249089,-500.0,0.0003863,9]
[355478058,1741198249099,-500.0,0.0003863,9]
[355478059,1741198249108,-500.0,0.0003863,9]
[355478060,1741198249121,-500.0,0.0003863,9]
[355478061,1741198249131,-500.0,0.0003863,9]
[355478062,1741198249141,-500.0,0.0003863,9]
[355478063,1741198249150,-1052.86,0.0003863,9]
[355478064,1741198249160,-319.44750342,0.0003863,9]
[355478065,1741198249170,-500.0,0.0003863,9]
[355478066,1741198249179,-464.79411392,0.0003863,9]
[355478067,1741198249189,-500.0,0.0003863,9]
[355478068,1741198249198,-500.0,0.0003863,9]
[355478069,1741198249208,-939.44,0.0003863,9]
[355478070,1741198249218,-500.0,0.0003863,9]
[355478071,1741198249227,-500.0,0.0003863,9]
[355478072,1741198249237,-872.64,0.0003863,9]
[355478073,1741198249247,-500.0,0.0003863,9]
[355478074,1741198249256,-500.0,0.0003863,9]
[355478075,1741198249266,-500.0,0.0003863,9]
[355478076,1741198249275,-500.0,0.0003863,9]
[355478077,1741198249285,-1655.0,0.0003863,9]
[355478078,1741198249295,-500.0,0.0003863,9]
[355478079,1741198249304,-500.0,0.0003863,9]
[355478080,1741198249314,-647.18,0.0003863,9]
[355478081,1741198249324,-500.0,0.0003863,9]
[355478082,1741198249334,-185.42520493,0.0003863,9]
[355478083,1741198249344,-500.0,0.0003863,9]
[355478084,1741198249354,-500.0,0.0003863,9]
[355478085,1741198249365,-514.44783545,0.0003863,9]
[355478086,1741198249375,-463.18876942,0.0003863,9]
[355478087,1741198249385,-500.0,0.0003863,9]
[355478088,1741198249395,-500.0,0.0003863,9]
[355478089,1741198249405,-500.0,0.0003863,9]
[355478090,1741198249414,-565.70597599,0.0003863,9]
[355478091,1741198249424,-583.25,0.0003863,9]
[355478092,1741198249433,-517.12298039,0.0003863,9]
[355478093,1741198249443,-500.0,0.0003863,9]
[355478094,1741198249452,-500.0,0.0003863,9]
[355478095,1741198249462,-500.0,0.0003863,9]
[355478096,1741198249472,-500.0,0.0003863,9]
[355478097,1741198249481,-500.0,0.0003863,9]
[355478098,1741198249491,-500.0,0.0003863,9]
[355478099,1741198249500,-529.67,0.0003863,9]
[355478101,1741198249510,-507.12271437,0.0003863,9]
[355478103,1741198249519,-500.0,0.0003863,9]
[355478105,1741198249528,-500.0,0.0003863,9]
[355478107,1741198249538,-500.0,0.0003863,9]
[355478109,1741198249548,-500.0,0.0003863,9]
[355478111,1741198249558,-957.17,0.0003863,9]
[355478113,1741198249568,-500.0,0.0003863,9]
[355478115,1741198249578,-798.05,0.0003863,9]
[355478117,1741198249587,-558.31,0.0003863,9]
[355478119,1741198249597,-500.0,0.0003863,9]
[355478121,1741198249610,-500.0,0.0003863,9]
[355478123,1741198249623,-500.0,0.0003863,9]
[355478125,1741198249633,-510.55426876,0.0003863,9]
[355478127,1741198249643,-600.97,0.0003863,9]
[355478128,1741198249652,-500.0,0.0003863,9]
[355478130,1741198249662,-619.98,0.0003863,9]
[355478133,1741198249671,-500.0,0.0003863,9]
[355478134,1741198249683,-500.0,0.0003863,9]
[355478136,1741198249694,-500.0,0.0003863,9]
[355478138,1741198249704,-157.2453135,0.0003863,9]
[355478140,1741198249713,-500.0,0.0003863,9]
[355478142,1741198249722,-500.0,0.0003863,9]
[355478144,1741198249732,-509.52540073,0.0003863,9]
[355478146,1741198249741,-500.0,0.0003863,9]
[355478148,1741198249750,-1120.54,0.0003863,9]
[355478150,1741198249759,-500.0,0.0003863,9]
[355478152,1741198249770,-500.0,0.0003863,9]
[355478154,1741198249779,-500.0,0.0003863,9]
[355478155,1741198249788,-500.0,0.0003863,9]
[355478156,1741198249799,-500.0,0.0003863,9]
[355478157,1741198249808,-591.35,0.0003863,9]
[355478158,1741198249817,-500.0,0.0003863,9]
[355478159,1741198249826,-500.0,0.0003863,9]
[355478160,1741198249835,-500.0,0.0003863,9]
[355478161,1741198249844,-5494.18,0.0003863,9]
[355478162,1741198249853,-500.0,0.0003863,9]
[355478163,1741198249866,-166.08736379,0.0003863,9]
[355478164,1741198249876,-500.0,0.0003863,9]
[355478165,1741198249885,-500.0,0.0003863,9]
[355478166,1741198249894,-500.0,0.0003863,9]
[355478167,1741198249904,-7784.72,0.0003863,9]
[355478168,1741198249913,-2091.63,0.0003863,9]
[355478169,1741198249922,-700.61,0.0003863,9]
[355478170,1741198249931,-500.0,0.0003863,9]
[355478171,1741198249941,-2052.02,0.0003863,9]
[355478172,1741198249950,-35987.65464544,0.0003863,7]
[355478173,1741198250145,-53222.82535456,0.0003863,7]
[355478174,1741198250155,-500.0,0.0003863,9]
[355478175,1741198250165,-500.0,0.0003863,9]
[355478176,1741198250175,-500.0,0.0003863,9]
[355478177,1741198250184,-174.78579652,0.0003863,9]
[355478178,1741198250193,-500.0,0.0003863,9]
[355478179,1741198250202,-1188.58,0.0003863,9]
[355478180,1741198250212,-500.0,0.0003863,9]
[355478181,1741198250221,-840.1,0.0003863,9]
[355478182,1741198250231,-500.0,0.0003863,9]
[355478183,1741198250240,-500.0,0.0003863,9]
[355478184,1741198250249,-500.0,0.0003863,9]
[355478185,1741198250259,-500.0,0.0003863,9]
[355478186,1741198250269,-500.0,0.0003863,9]
[355478187,1741198250278,-1455.61,0.0003863,9]
[355478188,1741198250287,-500.0,0.0003863,9]
[355478205,1741198250496,-3679.83,0.0003863,9]
[355478207,1741198250507,-150.0,0.0003863,2]
[355478209,1741198250517,-500.0,0.0003863,9]
[355478211,1741198250526,-500.0,0.0003863,9]
[355478213,1741198250536,-500.0,0.0003863,9]
[355478215,1741198250545,-500.0,0.0003863,9]
[355478217,1741198250554,-500.0,0.0003863,9]
[355478219,1741198250564,-500.0,0.0003863,9]
[355478221,1741198250573,-512.97704094,0.0003863,9]
[355478223,1741198250582,-520.83,0.0003863,9]
[355478225,1741198250592,-752.46,0.0003863,9]
[355478227,1741198250602,-500.0,0.0003863,9]
[355478229,1741198250616,-819.0,0.0003863,9]
[355478231,1741198250625,-515.66890733,0.0003863,9]
[355478233,1741198250634,-619.33,0.0003863,9]
[355478235,1741198250645,-500.0,0.0003863,9]